fUSD/lending_fUSD_20260218
["ID","MTS","AMOUNT","RATE_DAILY","PERIOD"]
[405952332,1771443035628,-500.0,8.657e-05,2]
[405952333,1771443035637,-1402.0,8.657e-05,2]
[405952334,1771443035646,-859.0,8.657e-05,2]
[405952335,1771443035655,-440.0,8.657e-05,2]
[405952336,1771443035665,-500.0,8.657e-05,2]
[405952337,1771443035674,-550.13,8.676e-05,2]
[405952338,1771443035684,-736.0,8.689e-05,2]
[405952339,1771443035695,-436.0,8.691e-05,3]
[405952340,1771443035703,-167.0,8.691e-05,3]
[405952341,1771443035713,-500.0,8.712e-05,2]
[405952342,1771443035723,-500.0,8.712e-05,2]
[405952343,1771443035732,-276.73882112,8.712e-05,2]
[405952344,1771443035742,-500.0,8.712e-05,2]
[405952345,1771443035751,-1733.0,8.712e-05,2]
[405952346,1771443035762,-712.0,8.712e-05,2]
[405952347,1771443035771,-1526.0,8.712e-05,2]
[405952348,1771443035781,-1222.0,8.712e-05,2]
[405952349,1771443035791,-500.0,8.712e-05,2]
[405952350,1771443035802,-1313.0,8.712e-05,2]
[405952351,1771443035811,-727.0,8.712e-05,2]
[405952352,1771443035820,-500.0,8.712e-05,2]
[405952353,1771443035830,-500.0,8.712e-05,2]
[405952354,1771443035840,-1402.0,8.712e-05,2]
[405952355,1771443035850,-859.0,8.712e-05,2]
[405952356,1771443035859,-440.0,8.712e-05,2]
[405952357,1771443035870,-500.0,8.712e-05,2]
[405952358,1771443035879,-10000.0,8.722e-05,2]
[405952359,1771443035889,-155.0,8.754e-05,2]
[405952360,1771443035899,-500.0,8.767e-05,2]
[405952361,1771443035910,-649.63591877,8.767e-05,2]
[405952362,1771443035920,-287.404808,8.767e-05,2]
[405952363,1771443035929,-1733.0,8.767e-05,2]
[405952364,1771443035939,-712.0,8.767e-05,2]
[405952365,1771443035949,-1526.0,8.767e-05,2]
[405952366,1771443035959,-1222.0,8.767e-05,2]
[405952367,1771443035968,-500.0,8.767e-05,2]
[405952368,1771443035978,-1313.0,8.767e-05,2]
[405952369,1771443035987,-727.0,8.767e-05,2]
[405952370,1771443035997,-500.0,8.767e-05,2]
[405952371,1771443036006,-500.0,8.767e-05,2]
[405952372,1771443036015,-1402.0,8.767e-05,2]
[405952373,1771443036026,-859.0,8.767e-05,2]
[405952374,1771443036036,-440.0,8.767e-05,2]
[405952375,1771443036045,-500.0,8.767e-05,2]
[405952376,1771443036054,-840.99,8.767e-05,2]
[405952377,1771443036065,-500.0,8.767e-05,2]
[405952378,1771443036074,-326.08354723,8.778e-05,2]
[405952379,1771443036086,-500.0,8.822e-05,2]
[405952380,1771443036096,-1733.0,8.822e-05,2]
[405952381,1771443036105,-712.0,8.822e-05,2]
[405952382,1771443036115,-1526.0,8.822e-05,2]
[405952383,1771443036125,-1222.0,8.822e-05,2]
[405952384,1771443036134,-500.0,8.822e-05,2]
[405952385,1771443036144,-1313.0,8.822e-05,2]
[405952386,1771443036153,-727.0,8.822e-05,2]
[405952387,1771443036163,-500.0,8.822e-05,2]
[405952388,1771443036172,-590.0,8.822e-05,2]
[405952389,1771443036182,-1402.0,8.822e-05,2]
[405952390,1771443036195,-859.0,8.822e-05,2]
[405952391,1771443036204,-440.0,8.822e-05,2]
[405952392,1771443036213,-203.42296453,8.822e-05,2]
[405952393,1771443036222,-500.0,8.877e-05,2]
[405952394,1771443036233,-1733.0,8.877e-05,2]
[405952395,1771443036242,-712.0,8.877e-05,2]
[405952396,1771443036251,-1526.0,8.877e-05,2]
[405952397,1771443036261,-1222.0,8.877e-05,2]
[405952398,1771443036269,-500.0,8.877e-05,2]
[405952399,1771443036278,-1313.0,8.877e-05,2]
[405952400,1771443036287,-727.0,8.877e-05,2]
[405952401,1771443036296,-500.0,8.877e-05,2]
[405952402,1771443036305,-1402.0,8.877e-05,2]
[405952403,1771443036314,-859.0,8.877e-05,2]
[405952404,1771443036322,-440.0,8.877e-05,2]
[405952405,1771443036331,-500.0,8.931e-05,2]
[405952406,1771443036340,-1733.0,8.931e-05,2]
[405952407,1771443036349,-712.0,8.931e-05,2]
[405952408,1771443036358,-1526.0,8.931e-05,2]
[405952409,1771443036367,-1222.0,8.931e-05,2]
[405952410,1771443036376,-500.0,8.931e-05,2]
[405952411,1771443036385,-1313.0,8.931e-05,2]
[405952412,1771443036394,-727.0,8.931e-05,2]
[405952413,1771443036403,-500.0,8.931e-05,2]
[405952414,1771443036411,-1402.0,8.931e-05,2]
[405952415,1771443036422,-859.0,8.931e-05,2]
[405952416,1771443036431,-440.0,8.931e-05,2]
[405952417,1771443036442,-500.0,8.986e-05,2]
[405952418,1771443036452,-1733.0,8.986e-05,2]
[405952419,1771443036461,-712.0,8.986e-05,2]
[405952420,1771443036471,-1526.0,8.986e-05,2]
[405952421,1771443036480,-1222.0,8.986e-05,2]
[405952422,1771443036490,-500.0,8.986e-05,2]
[405952423,1771443036499,-1313.0,8.986e-05,2]
[405952424,1771443036508,-727.0,8.986e-05,2]
[405952425,1771443036519,-500.0,8.986e-05,2]
[405952426,1771443036528,-1402.0,8.986e-05,2]
[405952427,1771443036537,-859.0,8.986e-05,2]
[405952428,1771443036547,-440.0,8.986e-05,2]
[405952429,1771443036556,-5000.0,9e-05,2]
[405952430,1771443036566,-500.0,9.041e-05,2]
[405952431,1771443036576,-1733.0,9.041e-05,2]
[405952432,1771443036585,-712.0,9.041e-05,2]
[405952433,1771443036596,-1526.0,9.041e-05,2]
[405952434,1771443036605,-1222.0,9.041e-05,2]
[405952435,1771443036615,-500.0,9.041e-05,2]
[405952436,1771443036625,-1313.0,9.041e-05,2]
[405952437,1771443036634,-727.0,9.041e-05,2]
[405952438,1771443036644,-500.0,9.041e-05,2]
[405952439,1771443036654,-1402.0,9.041e-05,2]
[405952440,1771443036663,-859.0,9.041e-05,2]
[405952441,1771443036673,-440.0,9.041e-05,2]
[405952442,1771443036682,-840.99,9.041e-05,2]
[405952443,1771443036692,-500.0,9.041e-05,2]
[405952444,1771443036701,-188.32168494,9.095e-05,2]
[405952445,1771443036709,-500.0,9.095e-05,2]
[405952446,1771443036718,-500.0,9.095e-05,2]
[405952447,1771443036728,-500.0,9.095e-05,2]
[405952448,1771443036737,-500.0,9.095e-05,2]
[405952449,1771443036747,-399.66540027,9.095e-05,2]
[405952450,1771443036756,-500.0,9.095e-05,2]
[405952451,1771443036765,-500.0,9.095e-05,2]
[405952452,1771443036774,-500.0,9.095e-05,2]
[405952453,1771443036785,-500.0,9.095e-05,2]
[405952454,1771443036795,-500.0,9.095e-05,2]
[405952455,1771443036805,-500.0,9.095e-05,2]
[405952456,1771443036814,-500.0,9.095e-05,2]
[405952457,1771443036823,-500.0,9.095e-05,2]
[405952458,1771443036832,-500.0,9.095e-05,2]
[405952459,1771443036841,-361.67462856,9.095e-05,2]
[405952460,1771443036854,-500.0,9.095e-05,2]
[405952461,1771443036863,-500.0,9.095e-05,2]
[405952462,1771443036872,-500.0,9.095e-05,2]
[405952463,1771443036881,-500.0,9.095e-05,2]
[405952464,1771443036890,-500.0,9.095e-05,2]
[405952465,1771443036900,-500.0,9.095e-05,2]
[405952466,1771443036909,-500.0,9.095e-05,2]
[405952467,1771443036919,-500.0,9.095e-05,2]
[405952468,1771443036928,-500.0,9.095e-05,2]
[405952469,1771443036938,-500.0,9.095e-05,2]
[405952470,1771443036947,-500.0,9.095e-05,2]
[405952471,1771443036956,-500.0,9.095e-05,2]
[405952472,1771443036965,-500.0,9.095e-05,2]
[405952473,1771443036974,-500.0,9.095e-05,2]
[405952474,1771443036986,-477.47558493,9.095e-05,2]
[405952475,1771443036995,-500.0,9.095e-05,2]
[405952476,1771443037005,-500.0,9.095e-05,2]
[405952477,1771443037015,-500.0,9.095e-05,2]
[405952478,1771443037025,-500.0,9.095e-05,2]
[405952479,1771443037035,-500.0,9.095e-05,2]
[405952480,1771443037044,-500.0,9.096e-05,2]
[405952481,1771443037055,-1733.0,9.096e-05,2]
[405952482,1771443037063,-712.0,9.096e-05,2]
[405952483,1771443037073,-1526.0,9.096e-05,2]
[405952484,1771443037083,-1222.0,9.096e-05,2]
[405952486,1771443037092,-500.0,9.096e-05,2]
[405952487,1771443037102,-1313.0,9.096e-05,2]
[405952488,1771443037111,-727.0,9.096e-05,2]
[405952489,1771443037121,-500.0,9.096e-05,2]
[405952490,1771443037130,-1402.0,9.096e-05,2]
[405952491,1771443037139,-859.0,9.096e-05,2]
[405952492,1771443037149,-440.0,9.096e-05,2]
[405952493,1771443037159,-550.13,9.132e-05,2]
[405952494,1771443037168,-500.0,9.151e-05,2]
[405952495,1771443037178,-1733.0,9.151e-05,2]
[405952496,1771443037191,-712.0,9.151e-05,2]
[405952497,1771443037200,-1526.0,9.151e-05,2]
[405952498,1771443037208,-1222.0,9.151e-05,2]
[405952499,1771443037219,-533.58284474,9.151e-05,2]
[405952500,1771443037229,-1313.0,9.151e-05,2]
[405952501,1771443037238,-727.0,9.151e-05,2]
[405952502,1771443037247,-500.0,9.151e-05,2]
[405952503,1771443037257,-1402.0,9.151e-05,2]
[405952504,1771443037267,-859.0,9.151e-05,2]
[405952505,1771443037276,-1297.59034333,9.163e-05,3]
[405952506,1771443037286,-206.20559036,9.205e-05,2]
[405952507,1771443037295,-1733.0,9.205e-05,2]
[405952508,1771443037304,-712.0,9.205e-05,2]
[405952509,1771443037313,-1526.0,9.205e-05,2]
[405952510,1771443037323,-1222.0,9.205e-05,2]
[405952511,1771443037332,-1313.0,9.205e-05,2]
[405952512,1771443037340,-727.0,9.205e-05,2]
[405952513,1771443037351,-440.08933819,9.205e-05,2]
[405952514,1771443037360,-1402.0,9.205e-05,2]
[405952515,1771443037369,-859.0,9.205e-05,2]
[405952516,1771443037378,-155.81,9.234e-05,2]
[405952517,1771443037387,-181.2148317,9.24e-05,2]
[405952518,1771443037397,-1000.0,9.247e-05,2]
[405952519,1771443037405,-1733.0,9.26e-05,2]
[405952520,1771443037415,-712.0,9.26e-05,2]
[405952521,1771443037424,-1526.0,9.26e-05,2]
[405952522,1771443037433,-1222.0,9.26e-05,2]
[405952523,1771443037442,-1313.0,9.26e-05,2]
[405952524,1771443037451,-727.0,9.26e-05,2]
[405952525,1771443037460,-1402.0,9.26e-05,2]
[405952526,1771443037470,-859.0,9.26e-05,2]
[405952527,1771443037480,-1733.0,9.315e-05,2]
[405952528,1771443037489,-712.0,9.315e-05,2]
[405952529,1771443037498,-1526.0,9.315e-05,2]
[405952530,1771443037507,-1222.0,9.315e-05,2]
[405952531,1771443037516,-1313.0,9.315e-05,2]
[405952532,1771443037526,-727.0,9.315e-05,2]
[405952533,1771443037535,-1402.0,9.315e-05,2]
[405952534,1771443037546,-859.0,9.315e-05,2]
[405952535,1771443037557,-840.99,9.315e-05,2]
[405952536,1771443037567,-500.0,9.315e-05,2]
[405952537,1771443037577,-1733.0,9.37e-05,2]
[405952538,1771443037587,-712.0,9.37e-05,2]
[405952539,1771443037596,-1526.0,9.37e-05,2]
[405952540,1771443037606,-1222.0,9.37e-05,2]
[405952541,1771443037615,-1313.0,9.37e-05,2]
[405952542,1771443037624,-727.0,9.37e-05,2]
[405952543,1771443037634,-1402.0,9.37e-05,2]
[405952544,1771443037642,-859.0,9.37e-05,2]
[405952545,1771443037651,-398.499988,9.383e-05,2]
[405952546,1771443037660,-155.81,9.404e-05,2]
[405952547,1771443037670,-1733.0,9.424e-05,2]
[405952548,1771443037679,-712.0,9.424e-05,2]
[405952549,1771443037688,-1526.0,9.424e-05,2]
[405952550,1771443037700,-1222.0,9.424e-05,2]
[405952551,1771443037710,-1313.0,9.424e-05,2]
[405952552,1771443037719,-727.0,9.424e-05,2]
[405952553,1771443037729,-1402.0,9.424e-05,2]
[405952554,1771443037738,-859.0,9.424e-05,2]
[405952555,1771443037747,-1752.41836875,9.479e-05,2]
[405952556,1771443037756,-712.44440465,9.479e-05,2]
[405952557,1771443037765,-1539.45860864,9.479e-05,2]
[405952558,1771443037775,-1245.19003278,9.479e-05,2]
[405952559,1771443037784,-1318.3983805,9.479e-05,2]
[405952560,1771443037794,-589.0,9.479e-05,2]
[405952561,1771443037803,-1420.6050016,9.479e-05,2]
[405952562,1771443037812,-859.07562476,9.479e-05,2]
[405952563,1771443037822,-4609.0,9.503e-05,2]
[405952564,1771443037831,-1252.0,9.557e-05,2]
[405952565,1771443037840,-155.81,9.575e-05,2]
[405952566,1771443037850,-840.99,9.589e-05,2]
[405952567,1771443037859,-436.00761673,9.589e-05,2]
[405952568,1771443037867,-151.0,9.589e-05,2]
[405952569,1771443037877,-550.13,9.589e-05,2]
[405952571,1771443037887,-23735.44,9.67e-05,2]
[405952573,1771443037897,-9999.99,9.67e-05,2]
[405952574,1771443037907,-2689.306688,9.72e-05,2]
[405952575,1771443037916,-155.81,9.746e-05,2]
[405952576,1771443037926,-840.99,9.863e-05,2]
[405952577,1771443037937,-266.0,9.897e-05,12]
[405952579,1771443037947,-155.81,9.917e-05,2]
[405952581,1771443037956,-995.11978986,0.0001,2]
[405952582,1771443037966,-161.40914362,0.0001,2]
[405952583,1771443037977,-151.0,0.0001,2]
[405952584,1771443037987,-205905.0,0.0001,2]
[405952585,1771443037996,-1000.0,0.0001,2]
[405952586,1771443038007,-1000.0,0.0001,2]
[405952587,1771443038017,-1000.0,0.0001,2]
[405952588,1771443038026,-1000.0,0.0001,2]
[405952589,1771443038035,-1000.0,0.0001,2]
[405952590,1771443038046,-1000.0,0.0001,2]
[405952591,1771443038056,-1000.0,0.0001,2]
[405952592,1771443038066,-1000.0,0.0001,2]
[405952593,1771443038075,-1000.0,0.0001,2]
[405952594,1771443038085,-1000.0,0.0001,2]
[405952595,1771443038095,-1000.0,0.0001,2]
[405952596,1771443038105,-1000.0,0.0001,2]
[405952597,1771443038115,-1000.0,0.0001,2]
[405952598,1771443038125,-1000.0,0.0001,2]
[405952599,1771443038136,-1000.0,0.0001,2]
[405952600,1771443038145,-1000.0,0.0001,2]
[405952601,1771443038155,-1000.0,0.0001,2]
[405952602,1771443038166,-1000.0,0.0001,2]
[405952603,1771443038176,-1000.0,0.0001,2]
[405952604,1771443038191,-1000.0,0.0001,2]
[405952605,1771443038201,-1000.0,0.0001,2]
[405952606,1771443038210,-222.11903836,0.0001,2]
[405952607,1771443038222,-200.0,0.0001,2]
[405952608,1771443038231,-500.0,0.0001,2]
[405952609,1771443038241,-500.0,0.0001,2]
[405952610,1771443038251,-500.0,0.0001,2]
[405952611,1771443038262,-151.0,0.0001,2]
[405952612,1771443038274,-500.0,0.0001,2]
[405952613,1771443038284,-151.0,0.0001,2]
[405952614,1771443038294,-500.0,0.0001,2]
[405952615,1771443038303,-151.0,0.0001,2]
[405952616,1771443038314,-500.0,0.0001,2]
[405952618,1771443038323,-151.0,0.0001,2]
[405952620,1771443038333,-500.0,0.0001,2]
[405952622,1771443038342,-151.0,0.0001,2]
[405952624,1771443038353,-151.0,0.0001,2]
[405952626,1771443038363,-500.0,0.0001,2]
[405952628,1771443038372,-151.0,0.0001,2]
[405952631,1771443038382,-151.0,0.0001,2]
[405952634,1771443038393,-500.0,0.0001,2]
[405952636,1771443038403,-151.0,0.0001,2]
[405952638,1771443038413,-151.0,0.0001,2]
[405952640,1771443038423,-500.0,0.0001,2]
[405952643,1771443038433,-151.0,0.0001,2]
[405952645,1771443038442,-151.0,0.0001,2]
[405952647,1771443038452,-151.0,0.0001,2]
[405952649,1771443038461,-151.0,0.0001,2]
[405952651,1771443038471,-500.0,0.0001,2]
[405952652,1771443038480,-151.0,0.0001,2]
[405952654,1771443038489,-151.0,0.0001,2]
[405952656,1771443038499,-500.0,0.0001,2]
[405952658,1771443038509,-500.0,0.0001,2]
[405952660,1771443038519,-151.0,0.0001,2]
[405952662,1771443038528,-151.0,0.0001,2]
[405952665,1771443038539,-500.0,0.0001,2]
[405952667,1771443038549,-151.0,0.0001,2]
[405952668,1771443038558,-500.0,0.0001,2]
[405952670,1771443038567,-151.0,0.0001,2]
[405952672,1771443038577,-500.0,0.0001,2]
[405952674,1771443038586,-151.0,0.0001,2]
[405952676,1771443038600,-500.0,0.0001,2]
[405952678,1771443038609,-151.0,0.0001,2]
[405952680,1771443038618,-500.0,0.0001,2]
[405952682,1771443038628,-500.0,0.0001,2]
[405952684,1771443038637,-151.0,0.0001,2]
[405952686,1771443038647,-151.0,0.0001,2]
[405952688,1771443038656,-500.0,0.0001,2]
[405952690,1771443038666,-151.0,0.0001,2]
[405952692,1771443038675,-500.0,0.0001,2]
[405952694,1771443038684,-151.0,0.0001,2]
[405952696,1771443038694,-500.0,0.0001,2]
[405952697,1771443038703,-151.0,0.0001,2]
[405952698,1771443038713,-500.0,0.0001,2]
[405952699,1771443038722,-151.0,0.0001,2]
[405952700,1771443038733,-151.0,0.0001,2]
[405952701,1771443038743,-151.0,0.0001,2]
[405952702,1771443038752,-151.0,0.0001,2]
[405952703,1771443038762,-200.0,0.0001,2]
[405952704,1771443038772,-2000.0,0.0001,2]
[405952705,1771443038782,-2000.0,0.0001,2]
[405952706,1771443038792,-2000.0,0.0001,2]
[405952707,1771443038802,-2000.0,0.0001,2]
[405952708,1771443038812,-2000.0,0.0001,2]
[405952709,1771443038822,-2000.0,0.0001,2]
[405952710,1771443038832,-550.13,0.00010046,2]
[405952711,1771443038842,-170.44202008,0.00010061,2]
[405952712,1771443038852,-155.81,0.00010088,2]
[405952713,1771443038861,-1719.89929449,0.00010098,2]
[405952714,1771443038871,-841.05554685,0.00010137,2]
[405952715,1771443038880,-155.0,0.00010213,2]
[405952716,1771443038889,-155.81,0.00010259,2]
[405952717,1771443038899,-1000.0,0.00010274,2]
[405952718,1771443038909,-21954.59510396,0.00010296,2]
[405952719,1771443038919,-5531.0,0.000104,3]
[405952720,1771443038929,-588.46,0.00010419,2]
[405952721,1771443038939,-6453.0,0.00010454,2]
[405952722,1771443038949,-550.13,0.00010502,2]
[405952723,1771443038959,-2129.0,0.00010517,2]
[405952724,1771443038969,-200.0,0.00010548,2]
[405952725,1771443038979,-539.13796622,0.00010548,2]
[405952726,1771443038990,-600.0,0.00010594,2]
[405952727,1771443039000,-600.0,0.00010594,2]
[405952728,1771443039012,-178.57,0.00010594,2]
[405952729,1771443039022,-351.16,0.00010679,2]
[405952730,1771443039033,-292.19182098,0.00010693,2]
[405952731,1771443039203,-269.09940998,0.000107,2]
[405952732,1771443039212,-162.380719,0.00010774,2]
[405952733,1771443039223,-174.61919141,0.00010774,2]
[405952734,1771443039232,-250.0,0.00010774,2]
[405952735,1771443039242,-250.0,0.00010774,2]
[405952736,1771443039252,-250.0,0.00010774,2]
[405952737,1771443039261,-250.0,0.00010774,2]
[405952738,1771443039271,-250.0,0.00010774,2]
[405952739,1771443039280,-250.0,0.00010774,2]
[405952740,1771443039290,-250.0,0.00010774,2]
[405952741,1771443039300,-255.07259394,0.00010774,2]
[405952742,1771443039309,-166.00545754,0.00010774,2]
[405952743,1771443039322,-308.62455366,0.00010774,2]
[405952744,1771443039331,-151.0,0.00010774,2]
[405952745,1771443039341,-578.20924308,0.00010774,2]
[405952746,1771443039351,-277.35679052,0.00010774,2]
[405952747,1771443039361,-1000.0,0.00010774,2]
[405952748,1771443039370,-1000.0,0.00010774,2]
[405952749,1771443039380,-1000.0,0.00010774,2]
[405952750,1771443039390,-798.00068592,0.00010774,2]
[405952751,1771443039399,-250.0,0.00010774,2]
[405952752,1771443039409,-288.82629962,0.00010774,2]
[405952753,1771443039418,-500.0,0.00010774,2]
[405952754,1771443039427,-693.3919763,0.00010774,2]
[405952755,1771443039437,-500.0,0.00010774,2]
[405952756,1771443039446,-500.0,0.00010774,2]
[405952757,1771443039456,-500.0,0.00010774,2]
[405952758,1771443039465,-500.0,0.00010774,2]
[405952759,1771443039475,-500.0,0.00010774,2]
[405952760,1771443039484,-500.0,0.00010774,2]
[405952761,1771443039494,-500.0,0.00010774,2]
[405952762,1771443039504,-500.0,0.00010774,2]
[405952763,1771443039513,-500.0,0.00010774,2]
[405952764,1771443039523,-500.0,0.00010774,2]
[405952765,1771443039533,-500.0,0.00010774,2]
[405952766,1771443039542,-500.0,0.00010774,2]
[405952767,1771443039552,-500.0,0.00010774,2]
[405952768,1771443039561,-500.0,0.00010774,2]
[405952769,1771443039570,-500.0,0.00010774,2]
[405952770,1771443039580,-500.0,0.00010774,2]
[405952771,1771443039590,-500.0,0.00010774,2]
[405952772,1771443039599,-500.0,0.00010774,2]
[405952773,1771443039609,-500.0,0.00010774,2]
[405952774,1771443039619,-1030.93366702,0.000108,2]
[405952775,1771443039629,-5531.0,0.000108,5]
[405952776,1771443039640,-151.0,0.00010829,2]
[405952777,1771443039652,-719.04747942,0.00010829,2]
[405952778,1771443039662,-151.0,0.00010884,2]
[405952779,1771443039672,-745.65223616,0.00010884,2]
[405952780,1771443039682,-151.0,0.00010939,2]
[405952781,1771443039691,-773.2413689,0.00010939,2]
[405952782,1771443039702,-166.66,0.00010959,2]
[405952783,1771443039712,-150.0,0.00010959,2]
[405952784,1771443039721,-150.0,0.00010959,2]
[405952785,1771443039732,-550.13,0.00010959,2]
[405952786,1771443039742,-436.0,0.00010981,3]
[405952787,1771443039751,-167.0,0.00010981,3]
[405952788,1771443039760,-151.0,0.00010994,2]
[405952789,1771443039770,-801.85129955,0.00010994,2]
[405952790,1771443039779,-517.34793536,0.00010999,2]
[405952791,1771443039789,-9452.37121348,0.00011,2]
[405952792,1771443039798,-271.22537401,0.00011049,2]
[405952793,1771443039807,-831.51979763,0.00011049,2]
[405952794,1771443039817,-166.66,0.00011068,2]
[405952795,1771443039826,-958.0,0.00011068,2]
[405952796,1771443039835,-1723.91274362,0.00011089,2]
[405952797,1771443039844,-200.0,0.00011096,2]
[405952798,1771443039854,-66512.79660993,0.00011099,2]
[405952799,1771443039863,-66512.79660992,0.00011099,2]
[405952800,1771443039872,-66512.79660992,0.00011099,2]
[405952801,1771443039886,-66512.79660992,0.00011099,2]
[405952802,1771443039895,-66512.79660992,0.00011099,2]
[405952803,1771443039905,-66512.79660992,0.00011099,2]
[405952804,1771443039915,-66512.79660992,0.00011099,2]
[405952805,1771443039924,-66512.79660992,0.00011099,2]
[405952806,1771443039934,-862.28603014,0.00011104,2]
[405952807,1771443039944,-894.19061326,0.00011159,2]
[405952808,1771443039953,-166.66,0.00011178,2]
[405952809,1771443039962,-927.27566595,0.00011214,2]
[405952810,1771443039971,-150.0,0.00011233,2]
[405952812,1771443039981,-13856.88,0.00011233,2]
[405952814,1771443039990,-2000.0,0.00011233,2]
[405952815,1771443039999,-200.0,0.00011233,2]
[405952816,1771443040011,-961.58486559,0.00011269,2]
[405952817,1771443040022,-166.66,0.00011288,2]
[405952818,1771443040033,-1000.0,0.00011301,2]
[405952819,1771443040043,-181.08010149,0.00011322,2]
[405952820,1771443040052,-287.61899177,0.00011322,2]
[405952821,1771443040063,-997.16350561,0.00011324,2]
[405952822,1771443040073,-200.0,0.00011345,2]
[405952823,1771443040083,-166.66,0.00011397,2]
[405952824,1771443040092,-66512.79660992,0.00011415,2]
[405952825,1771443040103,-550.13,0.00011416,2]
[405952826,1771443040112,-200.0,0.00011459,2]
[405952827,1771443040121,-6066.0,0.00011479,2]
[405952828,1771443040131,-9035.0,0.00011499,2]
[405952829,1771443040140,-166.66,0.00011507,2]
[405952830,1771443040149,-21138.47,0.00011507,2]
[405952831,1771443040158,-3371.0,0.00011568,2]
[405952832,1771443040167,-200.0,0.00011573,2]
[405952833,1771443040177,-215.06665654,0.00011617,2]
[405952834,1771443040190,-200.0,0.00011644,2]
[405952835,1771443040199,-200.0,0.00011689,2]
[405952836,1771443040208,-187.78006525,0.0001187,2]
[405952837,1771443040219,-298.26089446,0.0001187,2]
[405952838,1771443040228,-550.13,0.00011872,2]
[405952839,1771443040237,-3400.0,0.000119,4]
[405952840,1771443040247,-66512.79660992,0.00012042,2]
[405952841,1771443040259,-588.46,0.00012059,2]
[405952842,1771443040269,-51269.09269693,0.00012096,2]
[405952843,1771443040279,-168.3888056,0.00012143,2]
[405952844,1771443040288,-1429.9438895,0.00012151,2]
[405952845,1771443040301,-200.0,0.00012192,2]
[405952846,1771443040311,-600.0,0.00012256,2]
[405952847,1771443040323,-600.0,0.00012256,2]
[405952848,1771443040332,-178.57,0.00012256,2]
[405952849,1771443040342,-1000.0,0.00012329,2]
[405952850,1771443040351,-550.13,0.00012329,2]
[405952851,1771443040361,-534.23106527,0.00012364,2]
[405952852,1771443040371,-351.16,0.00012371,2]
[405952853,1771443040380,-194.72792766,0.00012418,2]
[405952854,1771443040389,-309.29654756,0.00012418,2]
[405952855,1771443040400,-308.43277492,0.000125,2]
[405952856,1771443040410,-929.833305,0.00012511,2]
[405952857,1771443040421,-150.0,0.00012616,3]
[405952858,1771443040432,-12097.0,0.00012649,2]
[405952859,1771443040441,-200.0,0.0001274,2]
[405952860,1771443040452,-51269.09269693,0.00012805,2]
[405952861,1771443040462,-271.5,0.00012877,2]
[405952862,1771443040472,-116449.46912322,0.000129,2]
[405952864,1771443040481,-173.62051493,0.00012906,2]
[405952865,1771443040491,-160.0,0.00012906,2]
[405952866,1771443040501,-6275.048939,0.0001296,2]
[405952867,1771443040512,-201.93286099,0.00012966,2]
[405952868,1771443040523,-320.74051982,0.00012966,2]
[405952869,1771443040532,-5623.94740036,0.00013,2]
[405952871,1771443040542,-500.0,0.00013,15]
[405952872,1771443040553,-500.0,0.00013,2]
[405952873,1771443040563,-500.0,0.00013,2]
[405952874,1771443040573,-500.0,0.00013,2]
[405952875,1771443040582,-500.0,0.00013,2]
[405952876,1771443040592,-500.0,0.00013,2]
[405952877,1771443040604,-500.0,0.00013,2]
[405952878,1771443040614,-500.0,0.00013,2]
[405952879,1771443040624,-500.0,0.00013,2]
[405952880,1771443040634,-500.0,0.00013,2]
[405952881,1771443040643,-500.0,0.00013,2]